fUSD/lending_fUSD_20250904
["ID","MTS","AMOUNT","RATE_DAILY","PERIOD"]
[383479068,1756955466661,-403.8575606,0.00022191,2]
[383479069,1756955466670,-400.0,0.00022191,2]
[383479070,1756955466679,-400.0,0.00022191,2]
[383479071,1756955466688,-489.49818989,0.00022191,2]
[383479072,1756955466698,-400.0,0.00022191,2]
[383479073,1756955466708,-400.0,0.00022191,2]
[383479074,1756955466718,-401.50147522,0.00022191,2]
[383479075,1756955466728,-400.0,0.00022191,2]
[383479076,1756955466737,-400.0,0.00022191,2]
[383479077,1756955466747,-898.38,0.00022191,2]
[383479078,1756955466756,-400.0,0.00022191,2]
[383479079,1756955466766,-400.0,0.00022191,2]
[383479080,1756955466775,-406.40629552,0.00022191,2]
[383479081,1756955466785,-406.45948702,0.00022191,2]
[383479082,1756955466794,-462.22,0.00022191,2]
[383479083,1756955466807,-471.41,0.00022191,2]
[383479084,1756955466818,-400.0,0.00022191,2]
[383479085,1756955466828,-249.39055341,0.00022191,2]
[383479086,1756955466837,-400.0,0.00022191,2]
[383479087,1756955466846,-400.0,0.00022191,2]
[383479088,1756955466856,-400.0,0.00022191,2]
[383479089,1756955466865,-400.0,0.00022191,2]
[383479090,1756955466876,-400.0,0.00022191,2]
[383479091,1756955466885,-402.34916431,0.00022191,2]
[383479092,1756955466894,-400.0,0.00022191,2]
[383479093,1756955466903,-400.0,0.00022191,2]
[383479094,1756955466912,-400.0,0.00022191,2]
[383479095,1756955466921,-400.0,0.00022191,2]
[383479096,1756955466931,-411.18861576,0.00022191,2]
[383479097,1756955466940,-400.0,0.00022191,2]
[383479098,1756955466949,-400.0,0.00022191,2]
[383479099,1756955466958,-400.0,0.00022191,2]
[383479100,1756955466967,-400.0,0.00022191,2]
[383479101,1756955466976,-400.0,0.00022191,2]
[383479102,1756955466985,-400.0,0.00022191,2]
[383479103,1756955466995,-400.0,0.00022191,2]
[383479104,1756955467004,-400.0,0.00022191,2]
[383479105,1756955467014,-400.0,0.00022191,2]
[383479106,1756955467023,-400.0,0.00022191,2]
[383479107,1756955467032,-400.0,0.00022191,2]
[383479108,1756955467042,-405.60388631,0.00022191,2]
[383479109,1756955467052,-400.0,0.00022191,2]
[383479110,1756955467062,-412.0,0.00022191,2]
[383479111,1756955467071,-400.0,0.00022191,2]
[383479112,1756955467080,-400.0,0.00022191,2]
[383479113,1756955467090,-400.0,0.00022191,2]
[383479114,1756955467099,-400.0,0.00022191,2]
[383479115,1756955467109,-400.0,0.00022191,2]
[383479116,1756955467118,-400.0,0.00022191,2]
[383479117,1756955467127,-400.0,0.00022191,2]
[383479118,1756955467137,-400.0,0.00022191,2]
[383479119,1756955467147,-400.0,0.00022191,2]
[383479120,1756955467156,-400.0,0.00022191,2]
[383479121,1756955467166,-400.0,0.00022191,2]
[383479122,1756955467175,-400.0,0.00022191,2]
[383479123,1756955467184,-400.0,0.00022191,2]
[383479124,1756955467193,-400.0,0.00022191,2]
[383479125,1756955467203,-400.0,0.00022191,2]
[383479126,1756955467214,-400.0,0.00022191,2]
[383479127,1756955467224,-400.0,0.00022191,2]
[383479128,1756955467234,-400.0,0.00022191,2]
[383479129,1756955467243,-402.47545862,0.00022191,2]
[383479130,1756955467252,-400.0,0.00022191,2]
[383479131,1756955467262,-419.01,0.00022191,2]
[383479132,1756955467271,-400.0,0.00022191,2]
[383479133,1756955467280,-400.0,0.00022191,2]
[383479134,1756955467290,-400.0,0.00022191,2]
[383479135,1756955467299,-400.0,0.00022191,2]
[383479136,1756955467308,-400.0,0.00022191,2]
[383479137,1756955467317,-400.0,0.00022191,2]
[383479138,1756955467330,-400.0,0.00022191,2]
[383479139,1756955467339,-400.0,0.00022191,2]
[383479140,1756955467348,-453.54,0.00022191,2]
[383479141,1756955467358,-400.0,0.00022191,2]
[383479142,1756955467368,-400.0,0.00022191,2]
[383479143,1756955467378,-400.0,0.00022191,2]
[383479144,1756955467387,-400.0,0.00022191,2]
[383479145,1756955467396,-408.02,0.00022191,2]
[383479146,1756955467405,-400.0,0.00022191,2]
[383479147,1756955467414,-400.0,0.00022191,2]
[383479148,1756955467423,-400.0,0.00022191,2]
[383479149,1756955467433,-400.0,0.00022191,2]
[383479150,1756955467442,-400.0,0.00022191,2]
[383479151,1756955467451,-400.0,0.00022191,2]
[383479152,1756955467461,-429.2605444,0.00022191,2]
[383479153,1756955467470,-890.92,0.00022191,2]
[383479154,1756955467479,-400.0,0.00022191,2]
[383479155,1756955467488,-400.0,0.00022191,2]
[383479156,1756955467498,-400.0,0.00022191,2]
[383479157,1756955467508,-465.47,0.00022191,2]
[383479158,1756955467518,-1455.4,0.00022191,2]
[383479159,1756955467529,-400.0,0.00022191,2]
[383479160,1756955467539,-400.0,0.00022191,2]
[383479161,1756955467548,-400.0,0.00022191,2]
[383479162,1756955467561,-513.93197435,0.00022191,2]
[383479163,1756955467571,-400.0,0.00022191,2]
[383479164,1756955467580,-400.0,0.00022191,2]
[383479165,1756955467590,-401.55234064,0.00022191,2]
[383479166,1756955467600,-400.0,0.00022191,2]
[383479167,1756955467610,-400.0,0.00022191,2]
[383479168,1756955467620,-464.73,0.00022191,2]
[383479169,1756955467631,-401.32408781,0.00022191,2]
[383479170,1756955467641,-400.0,0.00022191,2]
[383479171,1756955467652,-400.0,0.00022191,2]
[383479172,1756955467663,-400.0,0.00022191,2]
[383479173,1756955467673,-500.0,0.00022191,2]
[383479174,1756955467683,-482.58,0.00022191,2]
[383479175,1756955467693,-400.0,0.00022191,2]
[383479176,1756955467702,-400.0,0.00022191,2]
[383479177,1756955467711,-400.0,0.00022191,2]
[383479178,1756955467721,-400.0,0.00022191,2]
[383479179,1756955467731,-403.16720014,0.00022191,2]
[383479180,1756955467740,-400.0,0.00022191,2]
[383479181,1756955467749,-400.0,0.00022191,2]
[383479182,1756955467759,-400.0,0.00022191,2]
[383479183,1756955467768,-1000.0,0.00022191,2]
[383479184,1756955467778,-400.0,0.00022191,2]
[383479185,1756955467787,-471.73622934,0.00022191,2]
[383479186,1756955467796,-400.0,0.00022191,2]
[383479187,1756955467806,-400.0,0.00022191,2]
[383479188,1756955467816,-400.0,0.00022191,2]
[383479189,1756955467825,-400.0,0.00022191,2]
[383479190,1756955467835,-520.85,0.00022191,2]
[383479191,1756955467844,-400.0,0.00022191,2]
[383479192,1756955467854,-1943.65,0.00022191,2]
[383479193,1756955467863,-400.0,0.00022191,2]
[383479194,1756955467873,-400.0,0.00022191,2]
[383479195,1756955467882,-449.64,0.00022191,2]
[383479196,1756955467892,-400.0,0.00022191,2]
[383479197,1756955467901,-400.0,0.00022191,2]
[383479198,1756955467911,-400.0,0.00022191,2]
[383479199,1756955467921,-400.0,0.00022191,2]
[383479200,1756955467931,-400.0,0.00022191,2]
[383479201,1756955467940,-400.0,0.00022191,2]
[383479202,1756955467950,-402.81185272,0.00022191,2]
[383479203,1756955467959,-400.0,0.00022191,2]
[383479204,1756955467968,-400.0,0.00022191,2]
[383479205,1756955467978,-400.0,0.00022191,2]
[383479206,1756955467987,-1583.04,0.00022191,2]
[383479207,1756955467996,-400.0,0.00022191,2]
[383479208,1756955468006,-400.0,0.00022191,2]
[383479209,1756955468016,-400.0,0.00022191,2]
[383479210,1756955468026,-400.0,0.00022191,2]
[383479211,1756955468035,-400.0,0.00022191,2]
[383479212,1756955468045,-400.0,0.00022191,2]
[383479213,1756955468056,-400.0,0.00022191,2]
[383479214,1756955468065,-400.0,0.00022191,2]
[383479215,1756955468075,-400.0,0.00022191,2]
[383479216,1756955468085,-400.0,0.00022191,2]
[383479217,1756955468094,-400.0,0.00022191,2]
[383479218,1756955468104,-404.28866568,0.00022191,2]
[383479219,1756955468114,-400.0,0.00022191,2]
[383479220,1756955468123,-403.13800929,0.00022191,2]
[383479221,1756955468133,-415.96426726,0.00022191,2]
[383479222,1756955468142,-1345.88,0.00022191,2]
[383479223,1756955468152,-400.0,0.00022191,2]
[383479224,1756955468162,-403.71281026,0.00022191,2]
[383479225,1756955468171,-1946.25,0.00022191,2]
[383479226,1756955468181,-400.0,0.00022191,2]
[383479227,1756955468191,-400.0,0.00022191,2]
[383479228,1756955468200,-400.0,0.00022191,2]
[383479229,1756955468209,-400.0,0.00022191,2]
[383479230,1756955468219,-400.0,0.00022191,2]
[383479231,1756955468230,-400.0,0.00022191,2]
[383479232,1756955468239,-400.0,0.00022191,2]
[383479233,1756955468249,-424.88,0.00022191,2]
[383479234,1756955468259,-400.0,0.00022191,2]
[383479235,1756955468268,-402.58071098,0.00022191,2]
[383479236,1756955468278,-400.0,0.00022191,2]
[383479237,1756955468287,-401.59648217,0.00022191,2]
[383479238,1756955468296,-400.0,0.00022191,2]
[383479239,1756955468305,-400.0,0.00022191,2]
[383479240,1756955468315,-407.75119627,0.00022191,2]
[383479241,1756955468324,-403.83769185,0.00022191,2]
[383479242,1756955468334,-630.66,0.00022191,2]
[383479243,1756955468343,-402.75821693,0.00022191,2]
[383479244,1756955468353,-1617.94,0.00022191,2]
[383479245,1756955468363,-400.0,0.00022191,2]
[383479246,1756955468372,-746.86,0.00022191,2]
[383479247,1756955468381,-400.0,0.00022191,2]
[383479248,1756955468391,-400.0,0.00022191,2]
[383479249,1756955468400,-400.0,0.00022191,2]
[383479250,1756955468410,-400.92094567,0.00022191,2]
[383479251,1756955468420,-400.0,0.00022191,2]
[383479252,1756955468430,-400.0,0.00022191,2]
[383479253,1756955468440,-400.0,0.00022191,2]
[383479254,1756955468450,-400.0,0.00022191,2]
[383479255,1756955468460,-400.0,0.00022191,2]
[383479256,1756955468469,-400.44617013,0.00022191,2]
[383479257,1756955468479,-400.0,0.00022191,2]
[383479258,1756955468488,-400.0,0.00022191,2]
[383479259,1756955468497,-400.0,0.00022191,2]
[383479260,1756955468506,-400.0,0.00022191,2]
[383479261,1756955468516,-400.0,0.00022191,2]
[383479262,1756955468525,-400.0,0.00022191,2]
[383479263,1756955468534,-400.0,0.00022191,2]
[383479264,1756955468544,-400.0,0.00022191,2]
[383479265,1756955468554,-2805.39,0.00022191,2]
[383479266,1756955468563,-401.65319424,0.00022191,2]
[383479267,1756955468576,-402.91022107,0.00022191,2]
[383479268,1756955468585,-400.0,0.00022191,2]
[383479269,1756955468595,-400.0,0.00022191,2]
[383479270,1756955468605,-400.76915837,0.00022191,2]
[383479271,1756955468615,-402.67839761,0.00022191,2]
[383479272,1756955468625,-400.0,0.00022191,2]
[383479273,1756955468636,-400.0,0.00022191,2]
[383479274,1756955468646,-400.0,0.00022191,2]
[383479275,1756955468659,-400.0,0.00022191,2]
[383479276,1756955468669,-400.0,0.00022191,2]
[383479277,1756955468679,-400.0,0.00022191,2]
[383479278,1756955468689,-400.0,0.00022191,2]
[383479279,1756955468698,-400.0,0.00022191,2]
[383479280,1756955468708,-400.0,0.00022191,2]
[383479281,1756955468719,-401.77025155,0.00022191,2]
[383479282,1756955468728,-2741.85,0.00022191,2]
[383479283,1756955468738,-400.0,0.00022191,2]
[383479284,1756955468748,-400.0,0.00022191,2]
[383479285,1756955468758,-400.0,0.00022191,2]
[383479286,1756955468768,-400.0,0.00022191,2]
[383479287,1756955468778,-400.0,0.00022191,2]
[383479288,1756955468788,-400.0,0.00022191,2]
[383479289,1756955468799,-477.23,0.00022191,2]
[383479290,1756955468809,-536.92,0.00022191,2]
[383479291,1756955468819,-400.0,0.00022191,2]
[383479292,1756955468829,-400.0,0.00022191,2]
[383479293,1756955468839,-400.0,0.00022191,2]
[383479294,1756955468848,-400.0,0.00022191,2]
[383479295,1756955468858,-400.0,0.00022191,2]
[383479296,1756955468868,-400.0,0.00022191,2]
[383479297,1756955468877,-400.0,0.00022191,2]
[383479298,1756955468887,-400.0,0.00022191,2]
[383479299,1756955468897,-400.0,0.00022191,2]
[383479300,1756955468907,-205.1963403,0.00022191,2]
[383479301,1756955468916,-400.0,0.00022191,2]
[383479302,1756955468926,-2165.55,0.00022191,2]
[383479303,1756955468936,-400.0,0.00022191,2]
[383479304,1756955468946,-400.0,0.00022191,2]
[383479305,1756955468956,-408.56349916,0.00022191,2]
[383479306,1756955468966,-827.27,0.00022191,2]
[383479307,1756955468975,-400.0,0.00022191,2]
[383479308,1756955468984,-400.0,0.00022191,2]
[383479309,1756955468994,-400.0,0.00022191,2]
[383479310,1756955469004,-401.97597852,0.00022191,2]
[383479311,1756955469015,-400.0,0.00022191,2]
[383479312,1756955469025,-400.0,0.00022191,2]
[383479313,1756955469035,-400.0,0.00022191,2]
[383479314,1756955469044,-400.0,0.00022191,2]
[383479315,1756955469054,-400.0,0.00022191,2]
[383479316,1756955469063,-400.0,0.00022191,2]
[383479317,1756955469073,-405.88521109,0.00022191,2]
[383479318,1756955469083,-400.0,0.00022191,2]
[383479319,1756955469092,-400.0,0.00022191,2]
[383479320,1756955469102,-400.0,0.00022191,2]
[383479321,1756955469112,-400.0,0.00022191,2]
[383479322,1756955469122,-400.0,0.00022191,2]
[383479323,1756955469131,-400.0,0.00022191,2]
[383479324,1756955469141,-400.0,0.00022191,2]
[383479325,1756955469150,-525.8,0.00022191,2]
[383479326,1756955469160,-403.77,0.00022191,2]
[383479327,1756955469170,-701.09,0.00022191,2]
[383479328,1756955469180,-400.0,0.00022191,2]
[383479329,1756955469190,-400.0,0.00022191,2]
[383479330,1756955469200,-400.0,0.00022191,2]
[383479331,1756955469209,-400.0,0.00022191,2]
[383479332,1756955469219,-437.23,0.00022191,2]
[383479333,1756955469229,-400.0,0.00022191,2]
[383479334,1756955469239,-248.27104238,0.00022191,2]
[383479335,1756955469249,-400.0,0.00022191,2]
[383479336,1756955469259,-403.49352411,0.00022191,2]
[383479337,1756955469268,-400.0,0.00022191,2]
[383479338,1756955469278,-400.0,0.00022191,2]
[383479339,1756955469287,-400.0,0.00022191,2]
[383479340,1756955469297,-525.3,0.00022191,2]
[383479341,1756955469307,-400.0,0.00022191,2]
[383479342,1756955469316,-400.0,0.00022191,2]
[383479343,1756955469326,-400.0,0.00022191,2]
[383479344,1756955469336,-400.0,0.00022191,2]
[383479345,1756955469345,-400.0,0.00022191,2]
[383479346,1756955469355,-400.0,0.00022191,2]
[383479347,1756955469365,-442.4205908,0.00022191,2]
[383479348,1756955469374,-300.0,0.00022191,2]
[383479349,1756955469384,-400.0,0.00022191,2]
[383479350,1756955469394,-411.73786879,0.00022191,2]
[383479351,1756955469403,-400.0,0.00022191,2]
[383479352,1756955469413,-219.46785859,0.00022191,2]
[383479353,1756955469423,-400.0,0.00022191,2]
[383479354,1756955469432,-400.0,0.00022191,2]
[383479355,1756955469443,-419.22,0.00022191,2]
[383479356,1756955469452,-400.0,0.00022191,2]
[383479357,1756955469463,-400.0,0.00022191,2]
[383479358,1756955469473,-400.0,0.00022191,2]
[383479359,1756955469483,-400.0,0.00022191,2]
[383479360,1756955469493,-531.96,0.00022191,2]
[383479361,1756955469503,-400.0,0.00022191,2]
[383479362,1756955469514,-400.0,0.00022191,2]
[383479363,1756955469524,-400.0,0.00022191,2]
[383479364,1756955469534,-429.64,0.00022191,2]
[383479365,1756955469544,-400.0,0.00022191,2]
[383479366,1756955469556,-400.0,0.00022191,2]
[383479367,1756955469567,-427.11,0.00022191,2]
[383479368,1756955469577,-402.3576064,0.00022191,2]
[383479369,1756955469587,-457.3,0.00022191,2]
[383479370,1756955469598,-403.13200764,0.00022191,2]
[383479371,1756955469610,-400.0,0.00022191,2]
[383479372,1756955469626,-473.21,0.00022191,2]
[383479373,1756955469636,-413.63012413,0.00022191,2]
[383479374,1756955469646,-418.16,0.00022191,2]
[383479375,1756955469660,-400.0,0.00022191,2]
[383479376,1756955469670,-400.0,0.00022191,2]
[383479377,1756955469679,-175.93515882,0.00022191,2]
[383479378,1756955469689,-400.0,0.00022191,2]
[383479379,1756955469700,-400.0,0.00022191,2]
[383479380,1756955469710,-400.0,0.00022191,2]
[383479381,1756955469720,-400.0,0.00022191,2]
[383479382,1756955469931,-400.0,0.00022191,2]
[383479383,1756955469942,-400.0,0.00022191,2]
[383479384,1756955469952,-518.98,0.00022191,2]
[383479385,1756955469961,-400.0,0.00022191,2]
[383479386,1756955469970,-400.0,0.00022191,2]
[383479387,1756955469980,-400.0,0.00022191,2]
[383479388,1756955469990,-1658.24,0.00022191,2]
[383479389,1756955469999,-400.0,0.00022191,2]
[383479390,1756955470009,-400.0,0.00022191,2]
[383479391,1756955470018,-400.0,0.00022191,2]
[383479392,1756955470028,-400.0,0.00022191,2]
[383479393,1756955470037,-400.0,0.00022191,2]
[383479394,1756955470046,-400.0,0.00022191,2]
[383479395,1756955470056,-400.0,0.00022191,2]
[383479396,1756955470066,-778.2,0.00022191,2]
[383479397,1756955470075,-400.0,0.00022191,2]
[383479398,1756955470085,-400.0,0.00022191,2]
[383479399,1756955470095,-400.0,0.00022191,2]
[383479400,1756955470104,-400.0,0.00022191,2]
[383479401,1756955470114,-417.8,0.00022191,2]
[383479402,1756955470124,-400.0,0.00022191,2]
[383479403,1756955470134,-400.0,0.00022191,2]
[383479404,1756955470143,-400.0,0.00022191,2]
[383479405,1756955470152,-400.0,0.00022191,2]
[383479406,1756955470162,-400.0,0.00022191,2]
[383479407,1756955470171,-400.0,0.00022191,2]
[383479408,1756955470180,-400.0,0.00022191,2]
[383479409,1756955470190,-400.0,0.00022191,2]
[383479410,1756955470199,-400.0,0.00022191,2]
[383479411,1756955470208,-2430.87,0.00022191,2]
[383479412,1756955470218,-400.0,0.00022191,2]
[383479413,1756955470228,-400.0,0.00022191,2]
[383479414,1756955470238,-400.0,0.00022191,2]
[383479415,1756955470247,-400.0,0.00022191,2]
[383479416,1756955470257,-400.0,0.00022191,2]
[383479417,1756955470266,-400.0,0.00022191,2]
[383479418,1756955470276,-152.65011387,0.00022191,2]
[383479419,1756955470285,-402.90799224,0.00022191,2]
[383479420,1756955470295,-403.26787302,0.00022191,2]
[383479421,1756955470307,-211.5480526,0.00022191,2]
[383479422,1756955470316,-400.0,0.00022191,2]
[383479423,1756955470326,-400.0,0.00022191,2]
[383479424,1756955470335,-400.0,0.00022191,2]
[383479425,1756955470344,-405.53,0.00022191,2]
[383479426,1756955470354,-400.0,0.00022191,2]
[383479427,1756955470364,-413.58375969,0.00022191,2]
[383479428,1756955470374,-400.0,0.00022191,2]
[383479429,1756955470384,-400.0,0.00022191,2]
[383479430,1756955470393,-803.28,0.00022191,2]
[383479431,1756955470403,-400.0,0.00022191,2]
[383479432,1756955470413,-400.0,0.00022191,2]
[383479433,1756955470422,-405.74007487,0.00022191,2]
[383479434,1756955470432,-400.0,0.00022191,2]
[383479435,1756955470442,-400.0,0.00022191,2]
[383479436,1756955470452,-400.0,0.00022191,2]
[383479437,1756955470461,-400.0,0.00022191,2]
[383479438,1756955470470,-400.0,0.00022191,2]
[383479439,1756955470480,-400.0,0.00022191,2]
[383479440,1756955470490,-400.0,0.00022191,2]
[383479441,1756955470500,-400.0,0.00022191,2]
[383479442,1756955470509,-400.0,0.00022191,2]
[383479443,1756955470519,-406.0,0.00022191,2]
[383479444,1756955470529,-404.66908343,0.00022191,2]
[383479445,1756955470538,-400.0,0.00022191,2]
[383479446,1756955470548,-400.0,0.00022191,2]
[383479447,1756955470559,-400.0,0.00022191,2]
[383479448,1756955470569,-1580.62,0.00022191,2]
[383479449,1756955470579,-403.34852968,0.00022191,2]
[383479450,1756955470589,-400.0,0.00022191,2]
[383479451,1756955470599,-400.0,0.00022191,2]
[383479452,1756955470609,-466.41844607,0.00022191,2]
[383479453,1756955470619,-400.0,0.00022191,2]
[383479454,1756955470629,-400.0,0.00022191,2]
[383479455,1756955470639,-1295.76,0.00022191,2]
[383479456,1756955470649,-400.0,0.00022191,2]
[383479457,1756955470662,-402.86639866,0.00022191,2]
[383479458,1756955470671,-400.0,0.00022191,2]
[383479459,1756955470681,-400.0,0.00022191,2]
[383479460,1756955470691,-400.0,0.00022191,2]
[383479461,1756955470701,-400.0,0.00022191,2]
[383479462,1756955470710,-2004.44,0.00022191,2]
[383479463,1756955470720,-400.0,0.00022191,2]
[383479464,1756955470730,-400.0,0.00022191,2]
[383479465,1756955470740,-400.0,0.00022191,2]
[383479466,1756955470749,-400.0,0.00022191,2]
[383479467,1756955470759,-403.78449483,0.00022191,2]
[383479468,1756955470768,-402.9200909,0.00022191,2]
[383479469,1756955470777,-400.0,0.00022191,2]
[383479470,1756955470787,-400.0,0.00022191,2]
[383479471,1756955470797,-400.0,0.00022191,2]
[383479472,1756955470807,-400.0,0.00022191,2]
[383479473,1756955470817,-400.0,0.00022191,2]
[383479474,1756955470827,-3142.11,0.00022191,2]
[383479475,1756955470841,-664.86,0.00022191,2]
[383479476,1756955470850,-400.0,0.00022191,2]
[383479477,1756955470860,-400.0,0.00022191,2]
[383479478,1756955470869,-400.0,0.00022191,2]
[383479479,1756955470879,-400.0,0.00022191,2]
[383479480,1756955470888,-400.0,0.00022191,2]
[383479481,1756955470898,-400.0,0.00022191,2]
[383479482,1756955470907,-401.75536945,0.00022191,2]
[383479483,1756955470918,-400.0,0.00022191,2]
[383479484,1756955470928,-400.0,0.00022191,2]
[383479485,1756955470938,-400.0,0.00022191,2]
[383479486,1756955470949,-400.0,0.00022191,2]
[383479487,1756955470959,-1595.77,0.00022191,2]
[383479488,1756955470969,-652.71,0.00022191,2]
[383479489,1756955470979,-401.49082352,0.00022191,2]
[383479490,1756955470988,-400.0,0.00022191,2]
[383479491,1756955470998,-400.0,0.00022191,2]
[383479492,1756955471008,-400.0,0.00022191,2]
[383479493,1756955471018,-400.0,0.00022191,2]
[383479494,1756955471027,-400.0,0.00022191,2]
[383479495,1756955471037,-400.0,0.00022191,2]
[383479496,1756955471047,-404.44651824,0.00022191,2]
[383479497,1756955471057,-400.0,0.00022191,2]
[383479498,1756955471067,-405.16407434,0.00022191,2]
[383479499,1756955471077,-400.0,0.00022191,2]
[383479500,1756955471086,-400.0,0.00022191,2]
[383479501,1756955471095,-400.0,0.00022191,2]
[383479502,1756955471105,-400.0,0.00022191,2]
[383479503,1756955471115,-400.0,0.00022191,2]
[383479504,1756955471125,-400.0,0.00022191,2]
[383479505,1756955471135,-400.0,0.00022191,2]
[383479506,1756955471144,-400.0,0.00022191,2]
[383479507,1756955471154,-400.0,0.00022191,2]
[383479508,1756955471163,-400.0,0.00022191,2]
[383479509,1756955471173,-400.0,0.00022191,2]
[383479510,1756955471182,-400.0,0.00022191,2]
[383479511,1756955471192,-400.0,0.00022191,2]
[383479512,1756955471202,-208.9495766,0.00022191,2]
[383479513,1756955471213,-400.0,0.00022191,2]
[383479514,1756955471222,-400.69947384,0.00022191,2]
[383479515,1756955471232,-400.0,0.00022191,2]
[383479516,1756955471242,-400.0,0.00022191,2]
[383479517,1756955471251,-400.0,0.00022191,2]
[383479518,1756955471261,-689.69,0.00022191,2]
[383479519,1756955471271,-400.0,0.00022191,2]
[383479520,1756955471282,-400.0,0.00022191,2]
[383479521,1756955471291,-150.0,0.00022192,2]
[383479522,1756955471300,-500.0,0.00022193,2]
[383479523,1756955471311,-254.2306496,0.00022193,2]
[383479524,1756955471320,-833.24,0.000222,2]
[383479525,1756955471330,-720.9990277,0.00022201,2]
[383479526,1756955471340,-1258.0,0.00022236,2]
[383479527,1756955471349,-1577.0,0.00022236,2]
[383479528,1756955471358,-571.511,0.00022236,2]
[383479529,1756955471368,-1331.906,0.00022236,2]
[383479530,1756955471378,-604.775,0.00022236,2]
[383479531,1756955471388,-817.0,0.00022236,2]
[383479532,1756955471398,-910.789,0.00022236,2]
[383479533,1756955471408,-724.0,0.00022236,2]
[383479534,1756955471419,-2241.0,0.00022236,2]
[383479535,1756955471430,-4163.0,0.00022236,2]
[383479536,1756955471440,-6163.0,0.00022236,2]
[383479537,1756955471450,-21149.0,0.00022236,2]
[383479538,1756955471460,-4317.55561092,0.0002227,2]
[383479539,1756955471469,-1151.08445,0.0002232,2]
[383479540,1756955471478,-1773.21589262,0.00022322,2]
[383479541,1756955471487,-151.01716883,0.00022329,2]
[383479542,1756955471496,-500.0,0.0002233,2]
[383479543,1756955471506,-445.32493952,0.00022408,2]
[383479544,1756955471515,-5033.8069707,0.0002245,2]
[383479545,1756955471524,-207.0941002,0.00022461,2]
[383479546,1756955471534,-500.0,0.00022464,2]
[383479547,1756955471543,-500.0,0.00022464,2]
[383479548,1756955471552,-500.0,0.00022464,2]
[383479549,1756955471563,-709.02,0.00022464,2]
[383479550,1756955471572,-709.02,0.00022464,2]
[383479551,1756955471583,-500.0,0.00022464,2]
[383479552,1756955471592,-500.0,0.00022464,2]
[383479553,1756955471602,-400.0,0.00022465,2]
[383479554,1756955471611,-400.0,0.00022465,2]
[383479555,1756955471620,-153.494755,0.00022465,2]
[383479556,1756955471630,-151.144712,0.00022465,2]
[383479557,1756955471639,-400.0,0.00022465,2]
[383479558,1756955471650,-400.0,0.00022465,2]
[383479559,1756955471664,-403.71783169,0.00022465,2]
[383479560,1756955471674,-400.0,0.00022465,2]
[383479561,1756955471683,-400.0,0.00022465,2]
[383479562,1756955471692,-400.0,0.00022465,2]
[383479563,1756955471701,-400.0,0.00022465,2]
[383479564,1756955471711,-486.03,0.00022465,2]
[383479565,1756955471720,-400.0,0.00022465,2]
[383479566,1756955471730,-400.0,0.00022465,2]
[383479567,1756955471739,-400.0,0.00022465,2]